bitfinex-derivatives/quotes_ETHF0:USTF0_20251006
["timestamp","ask_amount","ask_price","bid_price","bid_amount"]
[1759716871917,0.81173,4526.6,4526.5,0.8611]
[1759716872419,0.60423,4526.6,4526.5,0.8611]
[1759716874618,0.81173,4526.6,4526.5,0.8611]
[1759716876315,0.81173,4526.6,4526.5,0.3095]
[1759716876521,1.10533,4526.6,4526.5,0.3095]
[1759716876723,0.83476,4526.2,4526.1,0.75102635]
[1759716884019,1.12836,4526.2,4526.1,0.00222635]
[1759716884220,1.12836,4526.2,4526.1,0.53422635]
[1759716884718,0.83476,4526.2,4526.1,0.75102635]
[1759716887234,0.61866,4526.2,4526.1,0.75102635]
[1759716889931,1.13846,4526.2,4526.1,0.53512635]
[1759716890329,0.84486,4526.2,4526.1,0.74492635]
[1759716890533,3.9879496,4527.0,4526.5,0.1258]
[1759716890739,0.48582865,4526.9,4526.8,3.9505]
[1759716890932,0.39749,4527.1,4527.0,0.8685]
[1759716892337,0.84509,4527.1,4527.0,0.8685]
[1759716896431,0.84509,4527.1,4527.0,0.4439]
[1759716896637,1.1387,4527.0,4526.9,0.5329]
[1759716897445,0.8451,4527.0,4526.9,0.7427]
[1759716897737,0.39747,4527.3,4527.2,0.3181]
[1759716897936,0.84087,4527.3,4527.2,3.9505]
[1759716898141,1.06707,4527.3,4527.2,3.9505]
[1759716898343,1.36067,4527.3,4527.2,3.9505]
[1759716899241,1.36067,4527.3,4527.2,3.7407]
[1759716900331,0.2262,4526.7,4526.6,0.5329]
[1759716900540,1.67829994,4526.7,4526.6,0.5329]
[1759716900751,2.07581994,4526.7,4526.6,0.5329]
[1759716901548,2.07581994,4526.7,4526.4,3.2078]
[1759716901549,0.84513,4526.5,4526.4,3.2078]
[1759716901752,0.84513,4526.5,4525.5,1.71147477]
[1759716901753,0.9933,4526.5,4525.7,3.5259]
[1759716901938,2.07585994,4526.2,4525.7,3.5259]
[1759716902853,2.78806896,4526.2,4525.7,3.5259]
[1759716903449,2.78800709,4526.2,4525.7,3.5259]
[1759716903948,2.78800709,4526.2,4525.7,0.3181]
[1759716904354,10.66694983,4526.2,4525.7,0.3181]
[1759716904550,10.66694983,4526.2,4525.4,0.3181]
[1759716905152,0.93774715,4526.2,4526.1,0.74492635]
[1759716905446,0.61889,4527.1,4527.0,0.3406]
[1759716905651,0.93326729,4527.1,4527.0,0.8685]
[1759716905849,1.15946729,4527.1,4527.0,0.8685]
[1759716906242,1.45306729,4527.1,4527.0,0.8685]
[1759716906441,1.15946729,4527.1,4527.0,0.8685]
[1759716906647,1.45306729,4527.1,4527.0,0.8685]
[1759716907245,1.45306729,4527.1,4527.0,0.6587]
[1759716907956,1.45306729,4527.1,4527.0,0.5329]
[1759716908255,1.15946729,4527.1,4527.0,0.6587]
[1759716908453,1.00546729,4527.1,4526.5,0.1258]
[1759716908752,1.42696723,4527.0,4526.5,0.1258]
[1759716908962,0.93326729,4526.9,4526.8,0.7427]
[1759716909157,1.15946729,4526.9,4526.8,0.7427]
[1759716909351,1.45306729,4526.9,4526.8,0.5329]
[1759716910462,1.15946729,4526.9,4526.8,0.7427]
[1759716914158,0.6696,4526.9,4526.8,0.7427]
[1759716914861,3.2078,4527.2,4527.1,0.2148]
[1759716915158,0.222,4527.2,4527.1,0.7427]
[1759716915353,0.00217301,4527.6,4527.5,0.5504]
[1759716915548,0.00217301,4527.6,4527.5,0.8685]
[1759716915748,0.00217301,4527.6,4527.5,6.26595]
[1759716915948,0.00217301,4527.6,4527.5,5.8685]
[1759716918753,0.2935,4528.9,4527.5,5.8685]
[1759716918754,3.2078,4529.0,4528.5,0.5799]
[1759716918951,3.2078,4529.0,4528.9,0.3276]
[1759716919269,3.2078,4529.0,4528.9,0.7801]
[1759716919560,0.39731,4529.1,4528.9,0.7801]
[1759716919761,0.39968455,4529.1,4529.0,0.9075]
[1759716921365,0.61858455,4529.1,4529.0,0.9075]
[1759716922661,0.83795,4528.6,4528.5,0.5799]
[1759716922964,0.83795,4528.6,4528.2,3.4326]
[1759716922965,0.83798,4528.3,4528.2,3.4326]
[1759716923161,1.05998,4528.3,4528.2,3.7602]
[1759716924161,1.35568,4528.3,4528.2,3.7602]
[1759716924563,1.05998,4528.3,4528.2,3.9879]
[1759716924765,1.35568,4528.3,4528.2,3.9879]
[1759716924965,1.05998,4528.3,4528.2,3.9879]
[1759716925661,0.83828,4528.3,4528.2,3.9879]
[1759716925866,3.60512,4528.9,4528.8,0.7801]
[1759716926165,3.82712,4528.9,4528.8,0.7801]
[1759716926555,4.04602,4528.9,4528.8,0.7801]
[1759716928073,4.26772,4528.9,4528.8,0.7801]
[1759716928364,4.56342,4528.9,4528.8,0.3276]
[1759716928569,4.26772,4528.9,4528.8,0.7801]
[1759716929070,1.13365,4528.6,4528.5,0.6798]
[1759716929267,1.35565,4528.6,4528.5,0.6798]
[1759716929567,1.05995,4528.6,4528.5,0.9075]
[1759716930670,1.35565,4528.6,4528.5,0.9075]
[1759716930873,0.83825,4528.6,4528.5,0.9075]
[1759716931367,0.222,4528.6,4528.5,0.9075]
[1759716931970,0.6626,4528.6,4528.5,0.9075]
[1759716934270,0.6626,4528.6,4528.5,0.3276]
[1759716934271,0.9583,4528.6,4528.5,0.3276]
[1759716934476,0.9583,4528.6,4528.5,0.5473]
[1759716935373,0.9583,4528.6,4528.5,0.6751]
[1759716935774,0.9583,4528.6,4528.5,0.3276]
[1759716936174,0.81708,4528.3,4528.2,3.4275]
[1759716936375,1.03908,4528.3,4528.2,3.7418]
[1759716936575,1.03908,4528.3,4528.2,3.9632]
[1759716936973,1.03908,4528.3,4527.7,0.534]
[1759716936974,0.2108,4527.8,4527.7,0.534]
[1759716937172,0.4197,4527.8,4527.7,0.534]
[1759716937679,0.4197,4527.8,4527.7,0.7554]
[1759716939580,0.39741,4527.9,4527.8,0.7554]
[1759716939772,0.60631,4527.9,4527.8,0.7554]
[1759716940378,0.39741,4527.9,4527.8,0.7554]
[1759716940579,0.60631,4527.9,4527.8,0.7554]
[1759716941278,0.81711,4527.9,4527.8,0.7554]
[1759716942877,0.222,4528.0,4527.9,0.7554]
[1759716943675,0.3974,4528.1,4528.0,0.8832]
[1759716943880,3.4167,4528.8,4528.7,0.7554]
[1759716944174,4.31699967,4528.8,4528.7,0.7554]
[1759716944380,4.52589967,4528.8,4528.7,0.7554]
[1759716944574,4.21536967,4528.8,4528.2,0.3143]
[1759716944779,0.7154,4528.3,4528.2,0.534]
[1759716945078,1.42726967,4528.3,4528.2,0.534]
[1759716945778,1.82464967,4528.3,4528.2,0.534]
[1759716945979,1.52894967,4528.3,4528.2,0.534]
[1759716946168,1.52894967,4528.3,4528.2,0.7554]
[1759716946372,1.03908,4528.3,4528.2,0.7554]
[1759716947582,0.61938,4528.3,4528.2,0.7554]
[1759716947781,0.39738,4528.3,4528.2,0.7554]
[1759716947978,0.61938,4528.3,4528.2,0.7554]
[1759716948871,3.2078,4528.8,4528.2,0.4411]
[1759716949073,3.2078,4528.8,4528.7,0.431]
[1759716949274,4.14804631,4528.8,4528.7,0.7652]
[1759716949876,4.37524631,4528.8,4528.7,0.7652]
[1759716950075,1.14808,4528.3,4528.2,0.3342]
[1759716950275,1.18273,4527.7,4527.6,0.2098]
[1759716951075,2.11975162,4527.7,4527.6,0.2098]
[1759716952479,0.3305,4527.3,4527.0,3.542]
[1759716952686,0.95563,4526.5,4526.4,0.7652]
[1759716953084,1.18283,4526.5,4526.4,0.7652]
[1759716954689,0.39753,4526.5,4526.4,0.7652]
[1759716957387,0.95563,4526.5,4526.4,0.7652]
[1759716958289,0.39753,4526.5,4526.4,0.7652]
[1759716958485,1.45283,4527.5,4526.5,0.8888]
[1759716958686,1.136,4527.5,4527.4,0.7652]
[1759716958887,1.62555367,4527.5,4527.4,0.7652]
[1759716959090,1.136,4527.5,4527.4,0.431]
[1759716959479,1.62563576,4527.5,4527.4,0.431]
[1759716959680,1.53345,4527.5,4527.4,0.431]
[1759716960496,1.53345,4527.5,4527.4,0.7652]
[1759716960989,1.53345,4527.5,4527.4,0.431]
[1759716961183,1.53345,4527.5,4527.4,0.2098]
[1759716963788,0.39748,4527.1,4527.0,0.3342]
[1759716963993,1.18278,4527.1,4527.0,0.2098]
[1759716964894,1.18278,4527.1,4527.0,0.7652]
[1759716966799,1.18278,4527.1,4527.0,0.431]
[1759716967596,0.39751,4526.8,4526.7,0.3342]
[1759716967796,1.31153,4526.5,4526.4,0.2098]
[1759716968000,1.18286,4526.2,4525.9,3.2078]
[1759716968197,1.18286,4526.2,4526.1,0.21202635]
[1759716968395,1.18286,4526.2,4526.1,0.76742635]
[1759716971804,1.18286,4526.2,4526.1,0.21202635]
[1759716973104,1.18286,4526.2,4526.1,0.76742635]
[1759716973303,0.39756,4526.2,4526.1,0.76742635]
[1759716973607,0.39755,4526.4,4526.3,0.7652]
[1759716975400,0.5525,4526.8,4526.3,0.7652]
[1759716975605,0.95555,4527.4,4527.3,0.2098]
[1759716975794,0.72791,4527.9,4527.8,0.2098]
[1759716976103,0.95551,4527.9,4527.8,0.7652]
[1759716977300,0.5581,4527.9,4527.8,0.7652]
[1759716977500,0.3305,4528.4,4528.2,0.3342]
[1759716977700,0.5691,4528.3,4528.2,0.7654]
[1759716978004,0.7894,4528.3,4528.2,0.7654]
[1759716979400,0.52602,4529.0,4528.2,0.4312]
[1759716979598,0.00237455,4529.1,4528.8,3.639]
[1759716979798,0.00237455,4529.1,4528.8,4.03632]
[1759716980003,0.00237455,4529.1,4528.9,0.3258]
[1759716980305,0.56347455,4529.1,4529.0,0.757]
[1759716980708,0.78377455,4529.1,4529.0,0.757]
[1759716981299,0.78377455,4529.1,4528.3,3.4319]
[1759716981300,0.7814,4528.4,4528.3,3.4319]
[1759716981502,0.7814,4528.4,4528.3,3.9648]
[1759716983009,1.17877,4528.4,4528.3,3.9648]
[1759716983314,1.17877,4528.4,4528.3,3.4319]
[1759716983709,0.39735,4528.6,4528.3,4.36218]
[1759716983911,0.95846,4528.5,4528.4,0.757]
[1759716984208,1.17881,4527.9,4527.8,3.2078]
[1759716984407,1.17881,4527.9,4527.8,3.4319]
[1759716985803,1.17885,4527.4,4527.3,3.2078]
[1759716986204,1.17885,4527.4,4527.3,3.4319]
[1759716986805,1.17885,4527.4,4527.3,3.639]
[1759716987002,6.17885,4527.4,4527.3,3.2078]
[1759716987211,6.17885,4527.4,4525.1,1.79896313]
[1759716987212,1.17896,4526.2,4526.1,3.21002635]
[1759716987512,1.17896,4526.2,4526.1,6.35e-06]
[1759716988708,0.39766,4525.1,4525.0,3.2078]
[1759716988916,5.7814,4526.2,4524.4,3.5336]
[1759716988917,0.39768,4524.9,4524.4,3.5336]
[1759716989215,0.9109,4524.5,4524.4,3.2078]
[1759716989609,1.30861,4524.5,4524.4,3.4319]
[1759716989813,1.31098004,4524.5,4524.4,3.43469282]
[1759716990012,1.31098004,4524.5,4524.4,0.00279282]
[1759716990221,0.3415,4523.8,4523.3,3.2078]
[1759716990407,0.3415,4523.9,4523.3,3.2078]
[1759716990611,0.13187004,4524.5,4524.3,0.757]
[1759716990612,0.3415,4524.4,4524.3,0.757]
[1759716990808,0.00237004,4524.5,4524.3,3.639]
[1759716991008,0.00237004,4524.5,4524.4,0.757]
[1759716991212,0.00237004,4524.5,4524.4,0.75894289]
[1759716991410,0.56347004,4524.5,4524.4,0.75894289]
[1759716992016,0.91327004,4524.5,4524.4,0.00194289]
[1759716992503,0.91327004,4524.5,4524.4,0.22604289]
[1759716994814,0.22197004,4524.5,4524.4,0.76364289]
[1759716995016,0.00237004,4524.5,4524.4,0.76364289]
[1759716995214,0.21787004,4524.5,4524.4,0.76364289]
[1759716996117,0.75517004,4524.5,4524.4,0.76364289]
[1759716996421,1.15288004,4524.5,4524.4,0.76364289]
[1759716996919,0.75517004,4524.5,4524.4,0.76364289]
[1759716998417,0.88507004,4524.5,4524.4,0.00194289]
[1759717003715,1.10707004,4524.5,4524.4,0.00194289]
[1759717005920,1.10707004,4524.5,4524.4,0.76074289]
[1759717006228,0.88507004,4524.5,4524.4,0.76074289]
[1759717006422,0.88507004,4524.5,4524.4,0.43474289]
[1759717007624,0.88507004,4524.5,4524.4,0.76074289]
[1759717007827,0.88507004,4524.5,4524.4,0.43474289]
[1759717009426,0.88507004,4524.5,4524.4,0.77014289]
[1759717009627,0.00237004,4524.5,4524.4,8.97794289]
[1759717009829,0.5229,4525.3,4525.2,0.7846]
[1759717010016,0.7466,4525.3,4525.2,3.2078]
[1759717010330,0.7466,4524.7,4524.6,3.2078]
[1759717010721,0.7493419,4524.7,4524.6,3.2078]
[1759717011124,0.8728,4524.5,4524.4,0.00194289]
[1759717013224,1.0948,4524.5,4524.4,0.00194289]
[1759717015824,0.8728,4524.5,4524.4,0.00194289]
[1759717016026,1.0948,4524.5,4524.4,0.00194289]
[1759717016427,1.58442166,4524.5,4524.4,0.00194289]
[1759717016827,6.58442166,4524.5,4524.4,0.00194289]
[1759717022435,1.36242166,4524.5,4524.4,0.22574289]
[1759717022635,1.23622166,4524.5,4524.4,0.78654289]
[1759717022931,1.58442166,4524.5,4524.4,0.45114289]
[1759717023124,1.58442166,4524.5,4524.4,0.22574289]
[1759717023332,1.58442166,4524.5,4524.4,0.00194289]
[1759717023628,1.58442166,4524.5,4524.4,4.289e-05]
[1759717023833,1.58442166,4524.5,4523.3,3.2078]
[1759717023834,0.7466,4523.4,4523.3,3.9924]
[1759717024026,0.5229,4523.4,4523.3,3.9924]
[1759717024934,0.5229,4523.4,4523.3,3.99450886]
[1759717027638,0.222,4523.8,4523.7,0.3354]
[1759717027835,0.222,4523.8,4523.7,0.7846]
[1759717028030,0.4347,4523.8,4523.7,0.7846]
[1759717028231,0.7449,4523.8,4523.7,0.7846]
[1759717028637,0.9686,4523.8,4523.7,0.7846]
[1759717029540,0.5229,4523.8,4523.7,0.7846]
[1759717029839,0.7466,4524.2,4524.1,0.7846]
[1759717030039,1.23704451,4524.2,4524.1,0.7846]
[1759717031439,0.49044451,4524.2,4524.1,0.7846]
[1759717031835,1.23704451,4524.2,4524.1,0.2238]
[1759717032837,1.23704451,4524.2,4524.1,0.4492]
[1759717033141,1.23704451,4524.2,4524.1,0.7846]
[1759717033142,0.49044451,4524.2,4524.1,0.7846]
[1759717033338,0.49044451,4524.2,4524.0,0.53025]
[1759717033339,0.0027419,4524.7,4524.6,0.7846]
[1759717033543,1.2400279,4524.7,4524.6,0.4492]
[1759717033738,1.2400279,4524.7,4524.6,0.2238]
[1759717034146,0.4364,4524.4,4524.3,0.7846]
[1759717034348,0.7466,4524.4,4524.3,0.7846]
[1759717035337,0.7466,4524.4,4524.0,0.1325]
[1759717035544,0.8728,4524.0,4523.9,3.2078]
[1759717036943,0.8728,4524.0,4523.9,3.9924]
[1759717038044,0.7466,4524.0,4523.9,3.9924]
[1759717038446,0.3197,4524.2,4524.1,0.2102]
[1759717038749,1.03336416,4524.2,4524.1,0.7374]
[1759717039151,1.24446416,4524.2,4524.1,0.7374]
[1759717039551,1.24446416,4524.2,4524.1,0.4251]
[1759717039750,1.24446416,4524.2,4524.1,0.7374]
[1759717039953,0.222,4524.5,4524.2,0.3123]
[1759717040148,0.222,4524.5,4524.4,0.7374]
[1759717040349,0.0027419,4524.7,4524.5,0.3123]
[1759717040552,0.2259419,4524.7,4524.6,0.4251]
[1759717040747,0.2259419,4524.7,4524.6,0.7374]
[1759717040943,0.71624532,4524.7,4524.6,0.7374]
[1759717041446,0.0027419,4524.7,4524.6,0.7374]
[1759717042256,0.2259419,4524.7,4524.6,0.7374]
[1759717044062,0.0027419,4524.7,4524.6,0.7374]
[1759717044360,0.5456419,4524.7,4524.6,0.7374]
[1759717045359,0.5456419,4524.7,4524.5,3.2078]
[1759717045360,1.1544319,4524.7,4524.5,3.2078]
[1759717045559,0.754,4524.6,4524.5,3.2078]
[1759717046262,0.754,4524.6,4524.5,3.4227]
[1759717048264,0.754,4524.6,4524.5,3.9452]
[1759717051867,0.754,4524.6,4524.5,3.6329]
[1759717052365,0.754,4524.6,4524.5,3.9452]
[1759717055160,0.754,4524.6,4524.5,0.4251]
[1759717055367,0.754,4524.6,4524.5,0.2149]
[1759717055866,0.5429,4524.6,4524.5,0.7386]
[1759717056268,0.7512,4524.6,4524.5,0.7386]
[1759717056667,0.7512,4524.6,4524.5,0.4254]
[1759717057568,0.7512,4524.6,4524.5,0.7386]
[1759717057865,0.7512,4524.6,4524.5,0.2149]
[1759717061167,0.39774,4524.2,4524.1,0.5291]
[1759717061366,1.2687,4523.5,4523.4,0.2159]
[1759717061569,0.8709,4523.5,4523.4,0.2159]
[1759717061766,0.8709,4523.5,4523.4,0.7396]
[1759717062574,0.739,4524.3,4524.2,0.7396]
[1759717062766,1.229122,4524.3,4524.2,0.7396]
[1759717063366,1.229122,4524.3,4524.2,0.4264]
[1759717064172,1.020822,4524.3,4524.2,0.7396]
[1759717064470,1.229122,4524.3,4524.2,0.7396]
[1759717065776,0.739,4524.3,4524.2,0.4264]
[1759717068076,1.55802907,4524.4,4524.2,0.7565]
[1759717068265,0.7422,4524.3,4524.2,0.7565]
[1759717069579,0.9642,4524.3,4524.2,0.7565]
[1759717070477,0.7512,4524.3,4524.2,0.7565]
[1759717070678,0.5292,4524.3,4524.2,0.7565]
[1759717076482,1.23318839,4524.3,4524.2,0.7565]
[1759717077885,0.7422,4524.3,4524.2,0.7565]
[1759717078178,1.23320063,4524.3,4524.2,0.7565]
[1759717081174,2.01512762,4524.3,4524.2,0.7565]
[1759717081579,0.4338,4523.9,4523.8,3.2078]
[1759717081786,1.2746,4523.5,4523.4,0.2137]
[1759717081984,2.05652699,4523.5,4523.4,0.2137]
[1759717082589,1.65872699,4523.5,4523.4,0.7613]
[1759717082884,1.65872699,4523.5,4523.4,0.2137]
[1759717085089,1.65872699,4523.5,4523.4,0.7613]
[1759717086379,0.7422,4523.5,4523.4,0.7613]
[1759717086783,1.52412699,4523.5,4523.4,0.7613]
[1759717087488,1.65872699,4523.5,4523.4,0.7613]
[1759717087987,1.65872699,4523.5,4523.4,0.4312]
[1759717088193,1.65872699,4523.5,4523.4,0.2137]
[1759717089594,1.14001,4523.4,4523.2,3.2078]
[1759717090790,0.7422,4523.4,4523.2,3.2078]
[1759717090992,0.7422,4523.4,4523.3,0.21580886]
[1759717091793,0.7422,4523.4,4523.3,0.76340886]
[1759717092394,0.9642,4523.4,4523.3,0.76340886]
[1759717093194,1.36201,4523.4,4523.3,0.43330886]
[1759717093692,0.9642,4523.4,4523.3,0.43330886]
[1759717093894,0.9642,4523.4,4523.3,0.76340886]
[1759717094994,0.9642,4523.4,4523.3,0.00210886]
[1759717096988,0.7422,4523.4,4523.3,0.21580886]
[1759717097293,1.74612699,4523.4,4523.3,0.43330886]
[1759717097892,1.74612699,4523.4,4523.3,0.21580886]
[1759717098098,1.74612699,4523.4,4523.3,0.00210886]
[1759717099400,2.23719452,4523.4,4523.3,0.00210886]
[1759717104301,2.23719452,4523.4,4523.3,0.76460886]
[1759717104495,2.01519452,4523.4,4523.3,0.76460886]
[1759717104692,2.23719452,4523.4,4523.3,0.45160886]
[1759717105095,2.23719452,4523.4,4523.3,0.00210886]
[1759717105798,2.23719452,4523.4,4523.3,0.22870886]
[1759717106004,1.74612699,4523.4,4523.3,0.22870886]
[1759717106302,1.74612699,4523.4,4523.3,0.00210886]
[1759717108205,1.52412699,4523.4,4523.3,0.76460886]
[1759717108403,1.74612699,4523.4,4523.3,0.76460886]
[1759717108802,1.74612699,4523.4,4523.3,0.45160886]
[1759717109007,1.74612699,4523.4,4523.3,0.22870886]
[1759717109308,2.23770031,4523.4,4523.3,0.22870886]
[1759717109805,2.63551031,4523.4,4523.3,0.22870886]
[1759717110807,1.53312699,4523.4,4523.3,0.76460886]
[1759717111302,1.75782699,4523.4,4523.3,0.45160886]
[1759717112009,1.53582699,4523.4,4523.3,0.45160886]
[1759717112307,1.75782699,4523.4,4523.3,0.76460886]
[1759717117609,1.53582699,4523.4,4523.3,0.76460886]
[1759717117906,1.75782699,4523.4,4523.3,0.76460886]
[1759717118407,1.75782699,4523.4,4523.3,0.45160886]
[1759717119308,1.75782699,4523.4,4523.3,0.22870886]
[1759717120108,1.75782699,4523.4,4523.3,0.00210886]
[1759717121612,1.75782699,4523.4,4523.3,0.22440886]
[1759717122603,1.53582699,4523.4,4523.3,1.17282886]
[1759717122807,0.9759,4523.4,4523.3,0.77500886]
[1759717123308,0.9759,4523.4,4523.3,0.44710886]
[1759717123610,0.9759,4523.4,4523.3,0.22440886]
[1759717124507,0.7539,4523.4,4523.3,0.77500886]
[1759717124712,0.9759,4523.4,4523.3,1.17282886]
[1759717125216,0.7539,4523.4,4523.3,1.17282886]
[1759717125509,0.1346,4524.0,4523.6,0.39778]
[1759717125510,0.2098,4523.7,4523.6,0.39778]
[1759717125813,0.7365,4523.7,4523.6,0.445]
[1759717126212,0.7365,4523.7,4523.6,0.7729]
[1759717127514,0.7365,4523.7,4523.6,0.445]
[1759717128012,0.7365,4523.7,4523.6,0.2223]
[1759717130218,0.7365,4523.7,4523.5,0.39779]
[1759717130418,0.7362,4523.7,4523.6,0.2213]
[1759717131320,0.7362,4523.7,4523.6,3.4291]
[1759717132715,0.7362,4523.7,4523.6,3.757]
[1759717133418,1.13398,4523.7,4523.6,3.4291]
[1759717133818,0.7362,4523.7,4523.6,3.4291]
[1759717134722,0.7362,4523.7,4523.6,3.757]
[1759717135222,0.7362,4523.7,4523.6,3.4291]
[1759717136717,0.7362,4523.7,4523.6,3.757]
[1759717136922,0.7362,4523.7,4523.6,3.4291]
[1759717137124,0.7362,4523.7,4523.6,3.757]
[1759717137917,0.2136,4524.0,4523.9,0.439]
[1759717138123,0.2136,4524.0,4523.9,0.7669]
[1759717138524,0.5301,4524.0,4523.9,0.7669]
[1759717138721,1.31202699,4524.4,4524.3,0.439]
[1759717138923,0.3165,4524.6,4524.5,0.3279]
[1759717139124,0.3192419,4524.7,4524.6,0.7669]
[1759717139321,0.0027419,4524.7,4524.6,1.54882699]
[1759717140921,0.0027419,4524.7,4524.6,0.7669]
[1759717141320,1.14966116,4524.7,4524.3,3.2078]
[1759717141628,0.7392,4523.9,4523.8,3.757]
[1759717141823,0.7392,4523.9,4523.8,3.2078]
[1759717142121,0.1289,4524.0,4523.5,0.222]
[1759717142122,0.2136,4523.6,4523.5,0.222]
[1759717142328,1.67701926,4523.6,4523.5,0.4433]
[1759717142829,0.7392,4523.6,4523.5,0.4433]
[1759717143228,0.7392,4523.6,4523.5,0.9889]
[1759717144229,0.7392,4523.6,4523.5,0.661]
[1759717144429,0.7392,4523.6,4523.5,0.4433]
[1759717144629,0.7392,4523.6,4523.5,0.9889]
[1759717145428,0.7392,4523.6,4523.5,0.661]
[1759717145630,0.7392,4523.6,4523.5,0.9889]
[1759717146128,0.7392,4523.6,4523.5,0.439]
[1759717146328,0.7392,4523.4,4523.3,3.65320886]
[1759717146529,0.7392,4523.4,4523.3,4.19880886]
[1759717149129,0.5301,4523.4,4523.3,4.59662886]
[1759717149734,0.5301,4523.4,4523.3,4.19880886]
[1759717151029,0.5301,4523.9,4523.8,0.439]
[1759717151228,0.7392,4523.9,4523.8,3.6468]
[1759717152426,0.7392,4523.9,4523.8,3.9747]
[1759717154633,0.92786,4523.9,4523.8,3.9747]
[1759717155038,0.5301,4523.9,4523.8,3.9747]
[1759717155238,0.7392,4523.9,4523.8,3.9747]
[1759717156940,0.3165,4524.1,4524.0,0.439]
[1759717157142,0.5301,4524.1,4524.0,0.7669]
[1759717157334,0.5301,4524.1,4524.0,1.16465]
[1759717157536,0.3231,4524.3,4524.0,0.96325]
[1759717157740,1.03471107,4524.2,4524.1,0.7666]
[1759717158140,1.24871107,4524.2,4524.1,0.7666]
[1759717158935,1.24871107,4524.2,4523.5,0.1265]
[1759717158936,0.3978,4523.5,4523.3,3.55040886]
[1759717159147,0.7624,4523.4,4523.3,0.00210886]
[1759717159741,0.7624,4523.4,4523.3,0.22140886]
[1759717162153,0.7624,4523.4,4523.3,0.00210886]
[1759717166451,0.7624,4523.4,4523.3,0.22140886]
[1759717166650,0.7624,4523.4,4523.3,0.76870886]
[1759717167254,0.7624,4523.4,4523.3,0.42820886]
[1759717167656,0.7624,4523.4,4523.3,0.76870886]
[1759717167850,0.39778,4523.7,4523.3,0.76870886]
[1759717167851,0.3231,4523.9,4523.8,0.2068]
[1759717168153,0.9844,4523.9,4523.8,0.7666]
[1759717170058,0.7624,4523.9,4523.8,0.7666]
[1759717170259,0.9844,4523.9,4523.8,0.7666]
[1759717170563,0.7624,4523.9,4523.8,0.7666]
[1759717171061,1.92221926,4523.9,4523.8,0.2193]
[1759717171260,1.297,4523.5,4523.4,0.7666]
[1759717171459,2.23481926,4523.5,4523.4,0.4261]
[1759717171661,1.297,4523.5,4523.4,0.4261]
[1759717172055,1.297,4523.5,4523.4,0.7666]
[1759717172255,1.1602,4523.5,4523.4,0.7666]
[1759717172655,0.7624,4523.5,4523.4,0.7666]
[1759717174164,0.8864,4523.5,4523.4,0.7666]
[1759717175470,0.7624,4523.5,4523.4,0.7666]
[1759717175770,0.96665,4524.0,4523.9,0.7538]
[1759717175961,1.45245455,4524.0,4523.9,0.7538]
[1759717176166,1.99925455,4524.0,4523.9,0.7538]
[1759717176964,0.5369,4524.0,4523.9,0.7538]
[1759717179464,0.3248,4524.0,4523.9,0.7538]
[1759717179670,0.2121,4524.1,4524.0,0.2232]
[1759717179969,0.5369,4524.1,4524.0,0.7538]
[1759717180171,0.7569,4524.1,4524.0,0.7538]
[1759717182865,0.3248,4524.6,4524.1,0.3242]
[1759717183065,0.0027419,4524.7,4524.5,0.5602]
[1759717183364,0.0027419,4524.7,4524.6,0.7538]
[1759717185673,0.5396419,4524.7,4524.6,0.7538]
[1759717185970,0.7596419,4524.7,4524.6,0.5306]
[1759717186171,0.7596419,4524.7,4524.6,0.2064]
[1759717186372,0.7569,4524.4,4524.3,0.222]
[1759717186773,1.15462,4524.4,4524.3,0.222]
[1759717187570,1.15483,4524.3,4524.2,0.7592]
[1759717187769,0.7571,4524.3,4524.2,0.7592]
[1759717188972,0.7571,4524.3,4524.0,3.4298]
[1759717188973,0.0027419,4524.7,4524.6,1.1569]
[1759717189365,0.7598419,4524.7,4524.6,0.7592]
[1759717190563,0.0027419,4524.7,4524.6,0.7592]
[1759717191576,0.5440419,4524.7,4524.6,0.7592]
[1759717193168,0.2199419,4524.7,4524.6,0.7592]
[1759717195778,0.5440419,4524.7,4524.6,0.7592]
[1759717196079,0.5440419,4524.7,4523.6,0.3315]
[1759717196080,0.3241,4524.1,4523.6,0.3315]
[1759717196275,0.7571,4523.6,4523.5,3.2078]
[1759717196476,0.7571,4523.4,4523.3,0.00210886]
[1759717197380,0.7571,4523.4,4523.3,0.20890886]
[1759717199178,0.7571,4523.4,4523.3,0.00210886]
[1759717201285,1.27854,4523.0,4522.9,0.02210995]
[1759717201480,2.28286294,4523.0,4522.9,0.02210995]
[1759717202181,2.28286294,4523.0,4522.9,0.02430477]
[1759717204192,1.15505,4521.8,4521.7,3.6355]
[1759717204488,1.93737294,4521.8,4521.7,3.2078]
[1759717204678,1.93737294,4521.8,4521.2,0.3315]
[1759717204679,1.15509,4521.3,4521.2,0.5383]
[1759717204987,1.15509,4521.3,4521.2,0.2068]
[1759717205185,1.9393228,4521.3,4521.2,0.20870462]
[1759717206287,2.1613228,4521.3,4521.2,0.00190462]
[1759717208393,0.98100986,4521.3,4521.2,0.20870462]
[1759717208591,0.75900986,4521.3,4521.2,0.76110462]
[1759717209296,0.00190986,4521.3,4521.2,3.96890462]
[1759717209695,0.21910986,4521.3,4521.2,3.96890462]
[1759717210095,0.54320986,4521.3,4521.2,3.96890462]
[1759717210495,0.00190986,4521.3,4521.2,3.96890462]
[1759717210795,3.3314,4522.0,4521.2,3.96890462]
[1759717210796,0.2172,4522.0,4521.9,0.7592]
[1759717210999,0.5413,4522.0,4521.9,3.6355]
[1759717211493,0.5413,4522.0,4521.9,3.967]
[1759717211694,0.21940778,4522.0,4521.9,3.967]
[1759717212297,0.54350778,4522.0,4521.9,3.967]
[1759717212894,0.00220778,4522.0,4521.9,3.967]
[1759717213202,0.75930778,4522.0,4521.9,3.967]
[1759717215601,0.00220778,4522.0,4521.9,3.967]
[1759717216305,0.75930778,4522.0,4521.9,3.967]